Cogmind - Beta 13 @@@ ROGUE MODE // 2024.06.28 @ 10:27:04 Player: Clockwork Slayer 55 Result: Destroyed by G-47 Trooper with Particle Gun Performance ------------- Evolutions (2) 1000 Regions Visited (3) 600 Robots Destroyed (33) 165 Value Destroyed (1093) 1093 Prototype IDs (0) 0 Alien Tech Used (0) 0 Bonus (0) 0 TOTAL SCORE: 2858 Bonus ------- None Cogmind --------- Core Integrity 0/550 Matter 295/300 Energy 100/100 System Corruption 2% Temperature Cool (9) Movement Core (700) Ox13 Location -8/Materials Parts ------- > --- POWER (2) -------- (None) > --- PROPULSION (2) --- (None) > --- UTILITY (3) ------ High-capacity Storage Unit > --- WEAPON (4) ------- (None) > --- INVENTORY (20) --- Aluminum Leg Aluminum Leg Wheel Surge Thruster Surge Thruster Heat Sink Visual Processing Unit Advanced Targeting Computer Hacking Suite Light Assault Rifle Heavy Assault Rifle Gauss Rifle Peak State ------------ > --- POWER ------------ Reinforced Ion Engine Light Nuclear Core > --- PROPULSION ------- Wheel Wheel > --- UTILITY ---------- Improved Heat Sink High-capacity Storage Unit Weight Redist. System > --- WEAPON ----------- Beam Rifle High-powered Shotgun Assault Cannon Assault Cannon > --- INVENTORY -------- Light Treads Light Treads Aluminum Leg Aluminum Leg Surge Thruster Surge Thruster Heat Sink Visual Processing Unit Improved Terrain Scanner Advanced Targeting Computer Hardlight Generator Shock Rifle Light Assault Rifle Heavy Assault Rifle Autogun Flak Cannon [Rating: 27] Favorites ----------- Power Ion Engine Engine Ion Engine Power Core Nuclear Core Propulsion Light Treads Treads Light Treads Leg Aluminum Leg Wheel Wheel Flight Unit Surge Thruster Utility High-capacity Storage Unit Device Field Recycling Unit Storage High-capacity Storage Unit Weapon High-powered Shotgun Energy Gun EM Pulse Gun Energy Cannon Beam Cannon Ballistic Gun High-powered Shotgun Ballistic Cannon Assault Cannon Special Weapon Mining Laser Build | -11 -10 -9 -8 ------- Run | Yrd Mat Mat Mat Slots Evolved 4 | . . 2 2 Power 1 | . . 1 . Propulsion . | . . . . Utility 1 | . . . 1 Weapon 2 | . . 1 1 Parts Attached 40 | 7 2 7 24 Power 7 | 1 . 1 5 Engine 5 | 1 . 1 3 Core 2 | . . . 2 Reactor . | . . . . Propulsion 11 | 3 . 2 6 Treads 4 | 2 . . 2 Leg 2 | . . 2 . Wheel 3 | 1 . . 2 Hover . | . . . . Flight 2 | . . . 2 Utility 11 | 1 2 1 7 Device 8 | . . 1 7 Storage 3 | 1 2 . . Processor . | . . . . Hackware . | . . . . Protection . | . . . . Artifact . | . . . . Weapon 11 | 2 . 3 6 Energy Gun 3 | 1 . . 2 Energy Cannon 1 | . . 1 . Ballistic Gun 3 | 1 . 1 1 Ballistic Cannon 3 | . . . 3 Launcher . | . . . . Special Weapon 1 | . . 1 . Impact Weapon . | . . . . Slashing Weapon . | . . . . Piercing Weapon . | . . . . Special Melee Weapon . | . . . . Unidentified Prototypes . | . . . . Parts Lost 24 | . . 4 20 Power 6 | . . 1 5 Propulsion 4 | . . 1 3 Utility 4 | . . . 4 Weapon 10 | . . 2 8 Highest Loss Streak 11 | . . 2 11 To Critical Strikes . | . . . . Average Slot Usage (%) 88 | . 86 87 91 Engine 12 | . 14 14 8 Core 1 | . . . 5 Treads 11 | . 28 10 3 Leg 4 | . . 11 . Wheel 4 | . . . 12 Device 10 | . . 10 16 Storage 11 | . 15 11 9 Energy Gun 6 | . 14 3 5 Energy Cannon 5 | . . 11 2 Ballistic Gun 12 | . 14 13 9 Ballistic Cannon 4 | . . . 13 Special Weapon 1 | . . 1 2 Naked Turns . | . . . . Heaviest Build 73 | 14 69 63 73 Greatest Support 40 | 40 40 40 40 Greatest Overweight (x) 5 | 3 1 2 5 Average Overweight (x) 1 | . . 1 2 Largest Inventory Capacity 20 | 8 20 20 20 Average Capacity 18 | 7 15 20 20 Most Carried 18 | 8 11 18 17 Average Carried 11 | 5 8 10 14 Final Capacity 20 | 8 20 20 20 Final Carried 18 | 6 10 18 12 Class Distribution -------------------- 41% | Mutant 33% | Gunner 16% | Skirmisher 8% | Scavenger-Skirmisher Dominant Class ---------------- Mutant | -10/Materials Gunner | -9/Materials Skirmisher | -8/Materials Resources | -11 -10 -9 -8 ----------- Run | Yrd Mat Mat Mat Matter Collected 1071 | 126 60 240 645 Remotely . | . . . . Salvage Created 1075 | . 174 336 565 Parts 69 | . 7 20 42 Haulers Intercepted . | . . . . Recyclers Shooed 3 | . . . 3 Parts Field Recycled . | . . . . Retrieved Matter . | . . . . Parts Self-Destructed . | . . . . Prevented . | . . . . Kills | -11 -10 -9 -8 ------- Run | Yrd Mat Mat Mat Combat Hostiles Destroyed 28 | . 4 7 17 Guns 15 | . 4 3 8 Cannons 13 | . . 4 9 Classes Destroyed 9 | . 1 4 4 Worker 1 | . . . 1 Recycler 1 | . . 1 . Operator 2 | . . 1 1 Watcher 1 | . . 1 . Swarmer 6 | . . 2 4 Grunt 19 | . 4 5 10 Brawler 1 | . . . 1 Sentry 1 | . . . 1 Hunter 1 | . . . 1 Best Kill Streak 6 | . 4 3 6 Combat Bots Only 5 | . 4 3 5 Max Kills in Single Turn 2 | . 1 1 2 Gunslinging . | . . . . Exploded . | . . . . Melee . | . . . . Uniques/NPCs Destroyed . | . . . . Combat | -11 -10 -9 -8 -------- Run | Yrd Mat Mat Mat Hostile Shots Fired 327 | . 41 46 240 Missed 93 | . 16 17 60 Damage Taken 2962 | . 356 308 2298 Core 703 | . 77 70 556 Absorbed by Shields 52 | . . . 52 Core Remaining (%) 83 | 100 69 82 . Volleys Fired 77 | . 18 21 38 Largest 4 | . 2 3 4 Hottest 229 | . 60 185 229 Shots Fired 229 | . 36 58 135 Gun 143 | . 36 36 71 Cannon 83 | . . 21 62 Launcher . | . . . . Special 3 | . . 1 2 Kinetic 146 | . 18 30 98 Thermal 55 | . . 22 33 Explosive . | . . . . Electromagnetic 28 | . 18 6 4 Robot Hit Streak 10 | . 5 3 10 Robot Miss Streak 7 | . 2 5 7 Penetration Max . | . . . . Secondary Targets . | . . . . Shots Hit Robots 125 | . 24 27 74 Core Hits 68 | . 8 16 44 Critical Kills . | . . . . Critical Parts Destroyed 1 | . . . 1 Critical Strikes 4 | . . . 4 Burn 1 | . . . 1 Destroy 1 | . . . 1 Blast 1 | . . . 1 Corrupt 1 | . . . 1 Melee Attacks . | . . . . Impact . | . . . . Slashing . | . . . . Piercing . | . . . . Sneak Attacks . | . . . . Combat Hostiles . | . . . . Follow-up Attacks . | . . . . Damage Inflicted 2509 | . 334 457 1718 Guns 1454 | . 334 284 836 Cannons 974 | . . 173 801 Explosions . | . . . . Melee . | . . . . Ramming 81 | . . . 81 Kinetic 1807 | . 203 284 1320 Thermal 445 | . . 173 272 Explosive . | . . . . Electromagnetic 176 | . 131 . 45 Impact . | . . . . Slashing . | . . . . Piercing . | . . . . Highest Corruption 2 | . . . 2 Average Corruption 2 | . . . 2 Corruption Purged . | . . . . Corruption Blocked . | . . . . Effects 5 | . . . 5 Message Errors 1 | . . . 1 Matter Fused 1 | . . . 1 Heat Flow Errors 1 | . . . 1 Parts Rejected 1 | . . . 1 Misfires 1 | . . . 1 Overload Shots . | . . . . Overflow Damage 12 | . . . 12 Projectiles 12 | . . . 12 Explosions . | . . . . Melee . | . . . . Knockbacks 11 | . . . 11 Impact 1 | . . . 1 Kinetic 10 | . . . 10 Secondary . | . . . . Self-Inflicted Damage 37 | . . . 37 Shots . | . . . . Rammed 14 | . . . 14 Targets Rammed 14 | . . . 14 Kicked . | . . . . Crushed . | . . . . Highest Temperature 538 | . 99 287 538 Average Temperature 124 | . 46 89 169 Received Heat Transfer 1287 | . 174 150 963 Effects 12 | . . . 12 Shutdowns 4 | . . . 4 Energy Bleed 1 | . . . 1 Interference 3 | . . . 3 Matter Decay 1 | . . . 1 Short Circuit 2 | . . . 2 Damage (minor) 1 | . . . 1 Siege Activations . | . . . . Robots Corrupted . | . . . . Combat Hostiles . | . . . . Parts Fried . | . . . . Impact Corruptions . | . . . . Robots Melted . | . . . . Combat Hostiles . | . . . . Parts Melted . | . . . . Heat Transferred 1110 | . . 370 740 Parts Sabotaged . | . . . . Parts Stolen . | . . . . Parts Stripped . | . . . . Power Chain Reactions . | . . . . Alert | -11 -10 -9 -8 ------- Run | Yrd Mat Mat Mat Peak Influence 252 | . 123 216 252 Initial 51 | . . 51 46 Average 112 | . 91 119 132 Maximum Alert Level 1 | . . 1 1 Low Security (%) 94 | 100 100 96 87 Level 1 5 | . . 3 12 Level 2 . | . . . . Level 3 . | . . . . Level 4 . | . . . . Level 5 . | . . . . High Security . | . . . . Max Security . | . . . . Squads Dispatched 9 | . . 3 6 Investigation 1 | . . 1 . Extermination . | . . . . Reinforcement 6 | . . 2 4 Assault . | . . . . Garrison 2 | . . . 2 Intercept . | . . . . Searches Triggered . | . . . . Construction Impeded 2 | . . . 2 Haulers Reinforced . | . . . . Active Scanning Responses . | . . . . Cargo Convoy Interrupts . | . . . . Stealth | -11 -10 -9 -8 --------- Run | Yrd Mat Mat Mat Distress Signals 1 | . . . 1 Communications Jammed . | . . . . Distress Signals . | . . . . Times Spotted 53 | . 7 16 30 Peak Tracking Total 9 | . 4 4 9 Tactical Retreats 1 | . 1 . . Traps | -11 -10 -9 -8 ------- Run | Yrd Mat Mat Mat Traps Triggered 1 | . 1 . . Indirectly . | . . . . Trap Hack Attempts . | . . . . Triggered . | . . . . Disarmed . | . . . . Reprogrammed . | . . . . Reused . | . . . . Traps Extracted . | . . . . Installed . | . . . . Triggered . | . . . . Machines | -11 -10 -9 -8 ---------- Run | Yrd Mat Mat Mat Machines Disabled 4 | . . 4 . Max in Single Turn 1 | . . 1 . Machines Repaired . | . . . . Machines Dismantled . | . . . . Machines Sabotaged . | . . . . Overloaded Fab Kills . | . . . . Hacking | -11 -10 -9 -8 --------- Run | Yrd Mat Mat Mat Machines Accessed 10 | . 3 3 4 Terminals 7 | . 2 2 3 Fabricators . | . . . . Repair Stations 1 | . 1 . . Recycling Units . | . . . . Scanalyzers 2 | . . 1 1 Garrison Access . | . . . . Total Hacks 35 | . 9 12 14 Successful 15 | . 4 5 6 Failed 18 | . 5 7 6 Catastrophic 2 | . 2 . . Database Lockouts 2 | . . . 2 Manual . | . . . . Terminals 25 | . 6 8 11 Fabricators . | . . . . Repair Stations 3 | . 3 . . Recycling Units . | . . . . Scanalyzers 7 | . . 4 3 Garrison Access . | . . . . Terminal Hacks 9 | . 2 3 4 Record 7 | . 2 1 4 Emergency Access Points 1 | . . 1 . Patrol Status 1 | . . 1 . Fabricator Hacks . | . . . . Repair Station Hacks 2 | . 2 . . Scan Component 1 | . 1 . . Repair 1 | . 1 . . Recycling Unit Hacks . | . . . . Scanalyzer 4 | . . 2 2 Insert Component 2 | . . 1 1 Analyze 2 | . . 1 1 Garrison Access Hacks . | . . . . Unauthorized Hacks . | . . . . Terminals . | . . . . Fabricators . | . . . . Repair Stations . | . . . . Recycling Units . | . . . . Scanalyzers . | . . . . Garrison Access . | . . . . Data Cores Recovered . | . . . . Used . | . . . . Hacking Detections 10 | . 3 3 4 Full Trace Events 2 | . 1 1 . Feedback Events . | . . . . Feedback Blocked . | . . . . Robot Schematics Acquired . | . . . . Robots Built . | . . . . Authchips . | . . . . Time . | . . . . Total Robot Build Rating . | . . . . Part Schematics Acquired 2 | . . 1 1 Parts Built . | . . . . Authchips . | . . . . Time . | . . . . Total Part Build Rating . | . . . . Parts Repaired . | . . . . Time 53 | . 53 . . Parts Recycled . | . . . . Recycled Matter . | . . . . Retrieved Matter . | . . . . Retrieved Components . | . . . . Parts Scanalyzed 2 | . . 1 1 Part Schematics Acquired 2 | . . 1 1 Parts Damaged . | . . . . Bothacking | -11 -10 -9 -8 ------------ Run | Yrd Mat Mat Mat Used RIF Installer . | . . . . Robots Hacked . | . . . . Non-combat . | . . . . Combat . | . . . . Robot Hacks Applied . | . . . . Relay Couplers Released . | . . . . Fabnet Peak Effective % . | . . . . Robots Rewired . | . . . . Allies Hacked . | . . . . Hacks Repelled . | . . . . Allies | -11 -10 -9 -8 -------- Run | Yrd Mat Mat Mat Total Allies . | . . . . Largest Group . | . . . . Highest-Rated Group . | . . . . Highest-Rated Ally . | . . . . Total Orders . | . . . . Ally Attacks . | . . . . Total Damage . | . . . . Kills . | . . . . Allies Corrupted . | . . . . Allies Melted . | . . . . Intel | -11 -10 -9 -8 ------- Run | Yrd Mat Mat Mat Robot Analysis Total . | . . . . Derelict Logs Recovered . | . . . . Drone Launches . | . . . . Drone Recoveries . | . . . . Exploration | -11 -10 -9 -8 ------------- Run | Yrd Mat Mat Mat Turns Passed 1873 | 84 395 752 642 Spaces Moved 825 | 41 202 263 319 Core 16 | 16 . . . Treads 401 | 25 202 135 39 Legs 128 | . . 128 . Wheels 269 | . . . 269 Hover . | . . . . Flight 11 | . . . 11 Fastest Speed 50 | 50 160 240 110 Average Speed 179 | 162 165 249 131 Slowest Speed 260 | 200 240 260 240 Overloaded Moves . | . . . . Propulsion Burnouts . | . . . . Robots Hopped . | . . . . Cave-ins Triggered . | . . . . Exploration Rate (%) 24 | 4 38 30 26 Regions Visited 3 Branch Regions . Pre-discovered Areas . | . . . . Known Exits Taken . | . . . . Unknown Exits Taken 3 | 1 1 1 . Scrap Searched . | . . . . Spaces Dug . | . . . . Terrain Destroyed 15 | . . 1 14 Melee . | . . . . Projectile 15 | . . 1 14 AOE . | . . . . Terrain Rammed . | . . . . Walls Destroyed . | . . . . Machines Disabled . | . . . . Actions | -11 -10 -9 -8 --------- Run | Yrd Mat Mat Mat Total 1022 | 58 229 312 423 Wait 13 | . . 7 6 Move 822 | 40 201 262 319 Hop . | . . . . Pick Up 45 | 10 6 14 15 Fast Attach 2 | 2 . . . Attach 29 | 5 1 7 16 Detach 3 | 1 1 1 . Swap 9 | . 1 . 8 Drop 8 | . 1 . 7 Fire 77 | . 18 21 38 Melee . | . . . . Ram 13 | . . . 13 Kick . | . . . . Crush 1 | . . . 1 Escape Stasis . | . . . . Rewire . | . . . . Trap . | . . . . Miscellaneous . | . . . . Route ------- -11/Scrapyard -10/Materials (discovered 2 exits: *Mat / [*Min]) -9/Materials -8/Materials History --------- Turn | Location | Event 31 | -11/Scrapyard | Discovered new exit (range 14) 85 | -11/Scrapyard | Entered Materials 157 | -10/Materials | Discovered new exit (range 13) 309 | -10/Materials | Build established: Mutant 441 | -10/Materials | Discovered new exit (range 6) 480 | -10/Materials | Entered another Materials area 480 | -9/Materials | Evolved 2 slots: Power x1, Weapon x1 1135 | -9/Materials | Discovered new exit (range 13) 1232 | -9/Materials | Entered another Materials area 1232 | -8/Materials | Evolved 2 slots: Utility x1, Weapon x1 1454 | -8/Materials | Lost 4 parts (1p1u2w) 1472 | -8/Materials | Central database locked down 1472 | -8/Materials | Central database locked down 1713 | -8/Materials | Garrison activated, responded to threat 1759 | -8/Materials | Lost 3 parts (1n2w) 1860 | -8/Materials | Core integrity fell below 50% 1868 | -8/Materials | Core integrity fell below 20% 1874 | -8/Materials | Destroyed by G-47 Trooper with Particle Gun Last Messages --------------- 01846_ R-06 Scavenger collects Corrupted Flight Unit. 01847_ Slammed into Y-45 Defender. 01847_ Lgt. Treads destroyed. 01850_ K-01 Serf collects debris. 01851_ Slammed into Y-45 Defender. 01851_ Lgt. Ion Engine destroyed. 01858_ Autogun destroyed. 01858_ Flak Cannon destroyed. 01858_ Assault Cannon destroyed. 01858_ K-01 Serf collects debris. 01861_ Slammed into Y-45 Defender. 01864_ Hardlight Generator destroyed. 01866_ K-01 Serf collects debris. 01867_ Critical hit (Burn: +37). 01868_ Imp. Terrain Scanner destroyed. 01869_ K-01 Serf collects debris. 01869_ Slammed into Y-45 Defender. 01870_ Critical hit (Burn: +37). 01872_ K-01 Serf collects debris. Map ----- +----------------------------------------------------+ | | | | | | | | | | | | | | | | | | | | | | | ?????????????????????????????????????????????????? | | ??????????????????????????? ?????????????????????? | | ???????????????????????? ? ? ??????????????????? | | ?????????????????#???????? ??#?????????????????? | | ?????????????????????+???" ? ??????????#??????#?? | | ???????????????????????"?? ???????#?????????????? | | ?????????????????????????? ?????????????????????# | | ?????????????##??????????? ????###?????????????? | | ???????????????? ????????? ?????????????????????? | | ?????????????????????#+###+#########???#?????????# | | ?????????????????????# ] #??? ?????????? | | ?????????????????##### #??????#??#???? | | ????????????"?? ?+ #??? ?????????? | | ??????????????????####### +?? ??????????? | | ??????????? ???????#???#@Y #????????#??#?? | | ????????????????????????# "" #???? ????????? | | ???????????????##########sg"G ############### | | ???????? *%[ %[ g%"" | | ???????? == % =k=% g % | | ???????? %*%=s !%[ | | ?????????#####+######### #####+############## | | ???????????????????????# #???# ??? ?????#??# | | ????????????????"??????#! !#???# ?????#??????? | | ???????????????????????##!!!!##??## ????????#### | | ???????????#??????????#?#######???# ?? #???#???# | | ????????????????????????#?????????# ] ??????????? | | ??????????????????????????????????# ??????????? | | ??????????????????????????????????######?????????? | | ??????????????????????????????????#??????????????? | | ?????????????? ????????????????????????#?????????? | | ?????????????????????? ????????????????#????#????? | | ????????????????????? ?????? ??? ?????????######## | | ??????????????????????????????????#???????# # | | ?????????????????????????????????????????## # | | ??????????????????????????????????????????# + | | ??????????????????????????????????????????# # | | ??????????????????????????????????????????# # | | ??????????????????????????????????????????# # | | ??????????????????????????????????????????######## | +----------------------------------------------------+ Best States ------------- Heat Dissipation 45 Energy Generation 21 Energy Capacity 390 Matter Stores 300 Matter Capacity 300 Sight Range 16 Robot Scan Range 14 Terrain Scan Range 16 Terrain Scan Density 10 Additional Mass Support 6 Evasion (%) 40 Recoil Reduction 2 Item Schematics ----------------- Mining Laser | -9/Materials | Scanalyzed Hvy. Assault Rifle | -8/Materials | Scanalyzed Robot Schematics ------------------ None Fabricated ------------ Nothing Alien Tech Used ----------------- None Achievements -------------- Troublemaker Challenges ------------ None Game ------ Seed MetafiberDerelictCleaver Manual? 0 Play Time 00:39:35 Cumulative 3.1 hours Start 2024.06.26 @ 18:05:48 End 2024.06.28 @ 10:27:04 Sessions 4 Manual Loads 0 Difficulty Rogue Special Mode None Game No. 7 Rogue 7 Adventurer 0 Explorer 0 Win Type - Total 0 Types 0/0/0/0/0/0/0/0/0 Lore% 1 Gallery% 6 Achievement% 5 Wizard Run 0 Options --------- Layout 1 ASCII 0 Keyboard 0 Movement Mouse Keybinds 0 Fullscreen 1 Font 24/Smallcaps Map View 50x35 Zoom Use 0% Tactical HUD 1 Map Filters NONE Filters NONE Steam 1 RUN: 1ab18d3e-9296-4783-bcc0-78f132e4ee73